Workbook

Sheet Hectare
B1: Machinery costing calculator: Machinery costs calculation (per hectare) Note: Edit blue cells only*
E4: £
B6: Purchase price | E6: 126000
B7: Selling price after | C7: 8 | D7: Years | E7: 34000
B8: Hectares worked annually | E8: 1200
B10: Fixed costs
B11: Average value per year owned | E11: =(E6+E7)/2 -> 80000
B12: Interest | C12: 2 | D12: % rate | E12: =(E11*C12)/100 -> 1600
B13: Annual depreciation | E13: =(E6-E7)/C7 -> 11500
B14: Insurance | C14: 2 | D14: % of purchase price | E14: =(E6*C14)/100 -> 2520
B15: Building/storage cost | C15: 1 | D15: % of purchase price | E15: =(E6*C15)/100 -> 1260
B17: Total annual fixed cost | E17: =(E12+E13+E14+E15) -> 16880
B19: Fixed cost per hectare | E19: =(E17/E8) -> 14.06666667
B21: Operating costs
B22: Ha covered/worked | C22: 4 | D22: Per Hr
B23: Labour cost | C23: 14 | D23: £/Hr
B24: Labour per Ha | E24: =C23/C22 -> 3.5
B25: Fuel price (click for price data) | C25: 0.53 | D25: £/L
B26: Fuel consumption (click for typical figures, see page 12) | C26: 20 | D26: L/Ha
B27: Cost of fuel per Ha | E27: =C26*C25 -> 10.6
B28: Spares and repairs | C28: 2 | D28: % of purchase price | E28: =(E6*C28/100)/E8 -> 2.1
B30: Total cost per Ha | E30: =E24+E27+E28+E19 -> 30.26666667
B32: Contractors/machinery ring charge per Ha | E32: 76
B33: (Click for typical contractor charges)
B35: Annual savings by using contractor and not purchasing | E35: =(E30-E32)*E8 -> -54880
B36: -£ would suggest you may be better purchasing
B38: *Note: Blue cells pre-populated for illustrative purposes only

Sheet Hour
B1: Machinery costing calculator: Machinery costs calculation (per hour) Note: Edit blue cells only*
E4: £
B6: Purchase price | E6: 92751
B7: Selling price after | C7: 7 | D7: Years | E7: 40000
B8: Hours worked annually | E8: 700
B10: Fixed costs
B11: Average value per year owned | E11: =(E6+E7)/2 -> 66375.5
B12: Interest | C12: 2 | D12: % rate | E12: =(E11*C12)/100 -> 1327.51
B13: Actual annual depreciation | E13: =(E6-E7)/C7 -> 7535.857143
B14: Insurance | C14: 2 | D14: % of purchase price | E14: =(E6*C14)/100 -> 1855.02
B15: Building /storage cost | C15: 1 | D15: % of purchase price | E15: =(E6*C15)/100 -> 927.51
B17: Total annual fixed cost | E17: =(E12+E13+E14+E15) -> 11645.89714
B19: Fixed cost per hour | E19: =(E17/E8) -> 16.63699592
B21: Operating costs
B22: Ha covered/worked per hour | C22: 4 | D22: Per Hr
B23: Fuel price (click for price data) | C23: 14 | D23: £/Hr
B24: Fuel consumption (click for typical figures, see page 12) | C24: 0.6 | D24: £/Lt
B25: Cost of fuel per hour | E25: =(C22*C23)*C24 -> 33.6
B26: Spares and repairs | C26: 1 | D26: % of purchase price | E26: =(E6*C26/100)/E8 -> 1.325014286
B27: Labour cost per hour | E27: 14
B29: Total cost per hour | E29: =(E19+E27+E25+E26) -> 65.5620102
B31: Contractors/machinery ring charge per hour | E31: 45
B32: (Click for typical contractor charges)
B34: Annual savings by using contractor and not purchasing | E34: =(E29-E31)*E8 -> 14393.40714
B35: -£ would suggest you may be better purchasing
B37: *Note: Blue cells pre-populated for illustrative purposes only

Sheet Workrate
B1: Machinery costing calculator: Workrate (compare between to machines) Note: Edit blue cells only*
C5: Model | D5: Model
C6: A | D6: B
B7: Input
B8: Implement width (m) | C8: 4 | D8: 30
B9: Capacity (kg or L) | C9: 800 | D9: 2000
B10: Forward speed (km/Hr) | C10: 6 | D10: 12
B11: Application rate | C11: 180 | D11: 250
B12: Transport time, one way (min) | C12: 5 | D12: 5
B13: Filling time (min) | C13: 10 | D13: 10
B14: Field efficiency (%) | C14: 65 | D14: 75
B17: Output
B18: Area covered per load (ha) | C18: =(C9/C11) -> 4.444444444 | D18: 5
B19: Filling rate (kg/min or L/min) | C19: =(C9/C13) -> 80 | D19: =D9/D13 -> 200
B20: Spot work rate (Ha/Hr) | C20: =(C8*C10/10) -> 2.4 | D20: =D8*D10/10 -> 36
B21: Total time per load (min) | C21: =(C13+2*C12)+(6000*C18)/(C20*C14) -> 190.9401709 | D21: =D13+2*D12+(6000*D18)/(D20*D14) -> 31.11111111
B22: Overall work rate (Ha/Hr) | C22: =(60*C18/C21) -> 1.39659803 | D22: =60*D18/D21 -> 9.642857143
B23: Overall efficiency (%) | C23: =100*C22/C20 -> 58.1915846 | D23: =100*D22/D20 -> 26.78571429
B25: Components
B26: Application time per load (min) | C26: =6000*C18/(C20*C14) -> 170.9401709 | D26: =6000*D18/(D20*D14) -> 11.11111111
B27: Application time (%) | C27: =100*C26/C21 -> 89.52551477 | D27: =100*D26/D21 -> 35.71428571
B28: Filling time per load (min) | C28: =C13 -> 10 | D28: =D13 -> 10
B29: Filling time (%) | C29: =100*C28/C21 -> 5.237242614 | D29: =100*D28/D21 -> 32.14285714
B30: Transport time per load (min) | C30: =2*C12 -> 10 | D30: =2*D12 -> 10
B31: Transport time (%) | C31: =100*C30/C21 -> 5.237242614 | D31: =100*D30/D21 -> 32.14285714
B33: *Note: Blue cells pre-populated for illustrative purposes only

Sheet Repair costs
B1: Machinery costing calculator: Estimated Annual cost of repairs Note: Edit blue cells only
F2: Table 1. Percentage of purchase price as cost of repairs | G2: Annual use (hours)
G3: 500 | H3: 750 | I3: 1000 | J3: 1500 | K3: Additional hours (for every 100 hours)
B4: Purchase price | C4: 69000 | G4: % | H4: % | I4: % | J4: % | K4: %
F5: Tractors | G5: 3 | H5: 3.5 | I5: 5 | J5: 7 | K5: 0.5
B6: Annual use | C6: 400 | D6: Hr/Year
G7: Annual use (hours)
B8: % of purchase price (table 1) | C8: 5 | D8: % | G8: 50 | H8: 100 | I8: 150 | J8: 200 | K8: Additional hours (for every 100 hours)
G9: % | H9: % | I9: % | J9: % | K9: %
B10: Budgeted repair and maintenance bill | C10: =C4*C8/100 -> 3450
F11: Harvesting machinery
B12: *Note: Blue cells pre-populated for illustrative purposes only | F12: Combine harvesters, self-propelled forage harvesters, self-propelled potato harvesters | G12: 1.5 | H12: 2.5 | I12: 3.5 | J12: 4.5 | K12: 2
F14: Trailed forage harvesters, pick-up balers, potato and sugar beet harvesters | G14: 3 | H14: 5 | I14: 6 | J14: 7 | K14: 2
F16: Other implements and machines
F17: Ploughs, cultivators and toothed harrows | G17: 4.5 | H17: 8 | I17: 11 | J17: 14 | K17: 6
F19: Rotary cultivators, mowers and pea cutters - windrowers | G19: 4 | H19: 7 | I19: 9.5 | J19: 12 | K19: 5
F21: Disc harrows, fertiliser spreaders, muck spreaders,combine drills, potato planters with fertiliser attachment,sprayers and hedge cutters | G21: 3 | H21: 5.5 | I21: 7.5 | J21: 9.5 | K21: 4
F23: Tedders, unit drills, flail forage harvesters, semi-automatic, potato planters and transplanters | G23: 2.5 | H23: 4.5 | I23: 6.5 | J23: 8.5 | K23: 4
F25: Cereal drills, hydraulic loaders and potato planting attachments | G25: 2 | H25: 4 | I25: 5.5 | J25: 7 | K25: 3
F27: Grain dryers, grain cleaners and rolls | G27: 1.5 | H27: 2 | I27: 2.5 | J27: 3 | K27: 0.5
